bitfinex-derivatives/quotes_ETHF0:USTF0_20250308
["timestamp","ask_amount","ask_price","bid_price","bid_amount"]
[1741436380247,3.77569003,2157.8,2157.6,3.2078]
[1741436380447,3.77569003,2158.1,2157.6,3.2078]
[1741436380954,3.77569003,2158.0,2157.7,1.59426029]
[1741436381144,3.78263817,2158.1,2157.7,1.59426029]
[1741436381449,3.78263817,2158.1,2157.8,0.61317703]
[1741436381654,0.00694814,2158.1,2158.0,3.2078]
[1741436381852,0.6283,2159.0,2158.0,5.8148]
[1741436382053,3.77569003,2158.9,2158.0,7.40870242]
[1741436382359,0.6283,2159.0,2158.0,7.40870242]
[1741436382550,3.77569003,2158.9,2158.1,15.4]
[1741436382855,3.77569003,2158.9,2158.1,16.99390242]
[1741436383054,0.00694814,2158.7,2158.1,16.99390242]
[1741436383458,3.77569003,2158.6,2158.1,15.4]
[1741436383853,3.77569003,2158.5,2158.0,3.2078]
[1741436384060,3.2078,2158.5,2158.2,0.61242212]
[1741436384260,3.77569003,2158.4,2158.2,0.61242212]
[1741436384659,3.77569003,2158.3,2157.7,3.2078]
[1741436384957,3.77569003,2158.4,2157.7,5.8078]
[1741436385156,3.77569003,2158.4,2157.7,3.2078]
[1741436385357,3.77569003,2158.3,2157.7,3.2078]
[1741436385661,3.2078,2158.5,2157.7,3.2078]
[1741436385662,3.77569003,2158.4,2157.7,3.2078]
[1741436386051,3.77569003,2158.3,2157.7,3.2078]
[1741436386250,3.2078,2158.2,2157.7,3.2078]
[1741436386759,3.77569003,2158.1,2157.7,3.2078]
[1741436386962,3.77569003,2158.4,2157.7,3.2078]
[1741436387459,3.77569003,2158.3,2157.7,3.2078]
[1741436387763,6.36369003,2158.6,2157.7,3.2078]
[1741436387962,3.77569003,2158.5,2157.7,3.2078]
[1741436388357,3.77569003,2158.4,2158.1,3.2078]
[1741436388557,3.77569003,2158.6,2158.1,3.2078]
[1741436388757,3.77569003,2158.5,2158.1,3.2078]
[1741436389058,3.77569003,2158.6,2158.2,2.586]
[1741436389763,3.77569003,2158.6,2158.4,3.2078]
[1741436390159,0.00694814,2158.7,2158.4,3.2078]
[1741436391455,0.00694814,2158.7,2158.5,15.4]
[1741436392251,0.00694814,2158.7,2158.4,3.2078]
[1741436392458,2.569,2159.4,2158.4,3.2078]
[1741436392459,3.2078,2160.4,2158.8,2.923]
[1741436392659,5.1203,2161.6,2160.3,3.2078]
[1741436392963,5.1203,2161.6,2160.8,3.2078]
[1741436393263,3.77569003,2161.5,2160.8,3.2078]
[1741436393460,3.77569003,2161.5,2161.1,3.2078]
[1741436393655,3.77569003,2161.5,2161.2,3.2078]
[1741436393656,3.78263817,2161.4,2161.2,3.2078]
[1741436394057,3.77569003,2161.3,2161.0,3.2078]
[1741436394369,3.77569003,2161.2,2161.0,3.2078]
[1741436394867,3.77569003,2161.1,2160.9,0.00694814]
[1741436395163,3.77569003,2161.0,2160.9,0.00694814]
[1741436395459,3.77569003,2161.1,2160.9,0.00694814]
[1741436395853,3.77569003,2161.0,2160.9,0.00694814]
[1741436396262,6.98349003,2161.0,2160.9,0.00694814]
[1741436398266,0.00694814,2161.4,2160.9,0.00694814]
[1741436398466,3.77569003,2161.3,2161.1,3.2078]
[1741436398767,3.77569003,2161.3,2160.9,0.00694814]
[1741436399072,3.2078,2161.3,2161.2,3.2078]
[1741436399472,6.98349003,2161.3,2160.9,3.21474814]
[1741436399665,9.58049003,2161.2,2160.6,0.00694814]
[1741436399870,3.2078,2160.9,2160.0,3.2078]
[1741436400168,3.2078,2160.4,2159.4,3.80945505]
[1741436400360,3.2078,2159.9,2159.4,0.60165505]
[1741436400555,5.8098,2159.9,2159.4,3.80945505]
[1741436400761,3.77569003,2159.8,2159.4,3.2078]
[1741436400962,3.77569003,2159.8,2159.4,3.21474814]
[1741436401161,3.2078,2159.6,2159.4,0.00694814]
[1741436401357,3.2078,2159.6,2159.1,3.2078]
[1741436401557,6.38069003,2159.5,2159.1,3.2078]
[1741436401963,3.77569003,2159.4,2159.1,3.2078]
[1741436402167,3.77569003,2159.5,2159.1,3.2078]
[1741436402366,3.77569003,2159.5,2158.7,3.2078]
[1741436402574,3.77569003,2159.4,2159.1,0.00694814]
[1741436402772,3.77569003,2159.5,2159.2,3.2078]
[1741436402966,5.81774814,2159.9,2159.1,0.00694814]
[1741436402967,3.77569003,2159.8,2159.1,0.00694814]
[1741436403573,3.2078,2159.5,2159.1,0.00694814]
[1741436403770,3.2078,2159.2,2159.1,0.00694814]
[1741436404066,3.2078,2159.2,2158.2,3.2078]
[1741436404277,3.2078,2158.8,2158.2,3.2078]
[1741436404571,3.2078,2158.8,2158.1,3.2078]
[1741436404771,6.37469003,2158.7,2158.1,3.2078]
[1741436404963,3.2078,2158.5,2157.8,18.6078]
[1741436405164,3.78263817,2158.6,2158.2,0.00694814]
[1741436405360,3.2078,2158.4,2157.7,3.2078]
[1741436405575,3.2078,2157.9,2157.7,15.4]
[1741436405773,3.2078,2157.9,2157.4,3.2078]
[1741436405969,3.2078,2157.6,2157.1,5.8088]
[1741436406158,3.2078,2157.6,2157.1,18.6078]
[1741436406366,3.77569003,2157.5,2157.1,18.6078]
[1741436406770,3.77569003,2157.4,2157.1,3.2078]
[1741436406974,0.6066,2158.4,2157.1,3.2078]
[1741436406975,3.78263817,2157.5,2157.1,3.21474814]
[1741436407167,0.00694814,2157.5,2157.4,3.2078]
[1741436407865,18.905,2158.3,2157.4,7.2078]
[1741436408065,0.6538,2158.5,2157.8,3.2078]
[1741436408066,3.77569003,2158.2,2157.8,3.2078]
[1741436408271,6.98349003,2158.4,2157.8,3.2078]
[1741436408472,3.77569003,2158.4,2157.8,3.2078]
[1741436408663,3.77569003,2158.4,2158.2,3.2078]
[1741436409068,3.77569003,2158.4,2157.8,3.2078]
[1741436409268,3.2078,2158.4,2157.5,5.8118]
[1741436409570,3.2078,2158.0,2157.5,3.2078]
[1741436409965,3.77569003,2157.9,2157.2,3.2078]
[1741436410374,3.77569003,2157.8,2157.2,3.2078]
[1741436410873,3.77569003,2157.7,2157.2,3.2078]
[1741436411080,3.2078,2157.7,2157.2,3.2078]
[1741436411278,0.6011,2158.2,2157.6,3.2078]
[1741436411580,3.77569003,2158.1,2157.6,3.2078]
[1741436411977,3.77569003,2158.0,2157.6,3.2078]
[1741436412274,3.77569003,2158.0,2157.5,3.2078]
[1741436412275,3.2078,2158.0,2157.5,3.2078]
[1741436412483,6.37869003,2158.1,2157.1,3.21474814]
[1741436412484,3.2078,2157.7,2157.1,3.21474814]
[1741436412975,3.77569003,2157.6,2157.1,3.21474814]
[1741436413476,3.77569003,2157.5,2157.1,3.21474814]
[1741436413776,3.2078,2157.4,2157.1,0.00694814]
[1741436414084,2.602,2157.3,2157.1,0.00694814]
[1741436414279,6.37769003,2157.3,2157.1,0.00694814]
[1741436414482,3.77569003,2157.2,2157.1,0.00694814]
[1741436414781,0.6227,2158.1,2157.2,0.92727]
[1741436414967,0.6227,2158.1,2157.6,3.2078]
[1741436414968,3.77569003,2158.0,2157.6,3.2078]
[1741436415170,3.77569003,2158.0,2157.7,15.4]
[1741436415369,3.2078,2158.7,2157.8,3.2078]
[1741436415572,4.38389003,2158.8,2157.8,3.2078]
[1741436415770,3.77569003,2158.7,2158.1,3.2078]
[1741436415977,0.00694814,2158.5,2158.1,5.8148]
[1741436416178,0.00694814,2158.5,2158.2,0.00694814]
[1741436416373,3.77569003,2158.4,2158.2,0.00694814]
[1741436416771,3.2078,2159.3,2158.3,2.923]
[1741436416970,1.78129003,2159.6,2158.9,3.2078]
[1741436417175,3.2078,2159.5,2158.7,2.609]
[1741436417375,3.2078,2159.2,2158.6,5.8168]
[1741436417577,3.2078,2159.2,2158.6,2.609]
[1741436417884,1.78129003,2159.1,2158.7,3.2078]
[1741436418073,0.00694814,2159.1,2158.7,3.2078]
[1741436418272,0.00694814,2159.1,2159.0,3.2078]
[1741436418470,3.2078,2159.9,2159.0,5.8218]
[1741436418774,1.78129003,2159.8,2159.6,3.2078]
[1741436419083,4.98909003,2160.3,2159.2,3.2078]
[1741436419273,2.69992429,2160.2,2159.2,3.2078]
[1741436419474,3.2078,2160.0,2159.2,3.2078]
[1741436419673,0.00694814,2159.9,2159.5,0.00694814]
[1741436419877,1.78823817,2159.9,2159.5,0.00694814]
[1741436420083,1.78129003,2159.8,2159.6,3.2078]
[1741436420588,1.78129003,2159.7,2159.6,3.2078]
[1741436420774,0.00694814,2159.9,2159.6,3.2078]
[1741436421171,0.00694814,2159.9,2159.6,7.2078]
[1741436421777,3.2078,2160.7,2159.6,7.2078]
[1741436422082,1.78129003,2160.6,2159.8,3.2078]
[1741436422482,1.78129003,2160.5,2159.8,3.2078]
[1741436422684,1.78129003,2160.6,2159.8,3.2078]
[1741436422981,0.00463212,2160.4,2159.8,3.2078]
[1741436423379,1.78129003,2160.3,2160.2,3.2078]
[1741436423578,3.2078,2161.7,2160.2,5.8218]
[1741436423778,2.6898847,2161.6,2160.7,3.2078]
[1741436423984,3.2078,2161.2,2160.7,3.2078]
[1741436424186,3.2078,2161.2,2160.4,3.2078]
[1741436424373,3.2078,2160.9,2160.2,2.923]
[1741436424579,3.2078,2160.9,2160.1,3.2078]
[1741436424772,1.78129003,2160.8,2160.3,0.00694814]
[1741436425177,3.2078,2161.4,2160.5,3.2078]
[1741436425683,1.78129003,2161.3,2160.5,3.2078]
[1741436426181,1.78129003,2161.2,2160.5,3.2078]
[1741436426386,1.78129003,2161.3,2160.5,3.2078]
[1741436426985,1.78129003,2161.2,2160.5,3.2078]
[1741436427183,3.2078,2161.1,2160.5,3.2078]
[1741436427376,0.6089,2161.0,2160.3,0.00694814]
[1741436427582,3.2078,2160.8,2160.3,0.00694814]
[1741436428082,1.78129003,2160.7,2160.3,0.00694814]
[1741436428480,3.2078,2160.8,2160.3,0.00694814]
[1741436428481,1.78129003,2160.6,2160.3,0.00694814]
[1741436428683,1.78129003,2160.7,2160.3,0.00694814]
[1741436429081,1.78129003,2160.6,2160.3,0.00694814]
[1741436429392,1.78129003,2160.7,2160.3,0.00694814]
[1741436429885,3.2078,2161.4,2160.4,5.8278]
[1741436430182,1.78129003,2161.3,2160.4,3.2078]
[1741436430576,3.2078,2161.4,2160.4,3.2078]
[1741436430577,1.78129003,2161.2,2160.4,3.2078]
[1741436430790,3.2078,2161.4,2160.4,3.2078]
[1741436430791,1.78129003,2161.3,2160.4,3.2078]
[1741436431283,1.78129003,2161.2,2160.4,3.2078]
[1741436431489,2.616,2161.2,2160.4,3.2078]
[1741436431691,1.78129003,2161.1,2160.4,3.2078]
[1741436432188,3.2078,2160.8,2160.3,0.00694814]
[1741436432387,3.02049003,2161.1,2160.3,0.00694814]
[1741436432986,1.78129003,2161.0,2160.3,0.00694814]
[1741436433185,3.28369462,2160.9,2160.3,0.00694814]
[1741436433491,2.68689462,2160.8,2160.3,0.00694814]
[1741436433790,0.6023,2160.7,2160.3,0.00694814]
[1741436433989,2.38359003,2160.7,2160.3,0.00694814]
[1741436434187,1.78129003,2160.6,2160.3,0.00694814]
[1741436434381,4.98909003,2160.6,2159.7,3.2078]
[1741436434579,3.2078,2160.3,2159.7,3.2078]
[1741436434780,3.2078,2160.0,2159.4,3.2078]
[1741436434985,5.8128,2160.0,2159.4,3.2078]
[1741436435186,1.78129003,2159.9,2159.1,3.2078]
[1741436435594,0.00694814,2159.7,2159.3,0.00694814]
[1741436435987,1.78129003,2159.6,2159.3,0.00694814]
[1741436436385,4.98909003,2159.5,2159.3,0.00694814]
[1741436436592,3.2078,2159.5,2158.7,3.2078]
[1741436436787,1.78129003,2159.4,2158.8,15.4]
[1741436436991,3.2078,2159.2,2158.6,2.601]
[1741436437187,3.2078,2159.2,2158.4,3.2078]
[1741436437390,1.78129003,2159.1,2158.4,3.2078]
[1741436437791,1.78129003,2159.0,2158.5,0.00694814]
[1741436437995,1.78129003,2159.1,2158.5,0.00694814]
[1741436438403,1.78129003,2159.0,2158.5,0.00694814]
[1741436438695,1.78129003,2159.1,2158.5,0.00694814]
[1741436438995,3.2078,2158.8,2158.0,3.2078]
[1741436439297,3.2078,2158.5,2157.7,3.2078]
[1741436439490,5.8058,2158.5,2157.7,3.2078]
[1741436439696,1.78129003,2158.4,2157.7,3.2078]
[1741436440296,1.78129003,2158.4,2158.2,3.2078]
[1741436440297,0.00694814,2158.3,2158.2,3.2078]
[1741436441396,3.2078,2159.1,2158.2,3.2078]
[1741436441599,5.8008,2159.1,2158.6,3.2078]
[1741436441790,1.78129003,2159.0,2158.6,3.2078]
[1741436442193,1.78129003,2158.9,2158.6,3.2078]
[1741436442389,1.78129003,2159.0,2158.6,3.2078]
[1741436442790,1.78129003,2158.9,2158.6,3.2078]
[1741436443194,1.78129003,2158.8,2158.6,3.2078]
[1741436443396,1.78129003,2158.9,2158.6,3.2078]
[1741436444005,0.00694814,2159.0,2158.7,15.4]
[1741436444302,0.00694814,2159.0,2158.9,3.2078]
[1741436444997,0.00694814,2159.0,2158.9,15.4]
[1741436444998,1.78823817,2159.0,2158.9,15.4]
[1741436445199,1.78823817,2159.0,2158.5,3.2078]
[1741436445396,1.78129003,2158.9,2158.5,3.2078]
[1741436445794,1.78129003,2158.8,2158.5,3.2078]
[1741436445995,1.78129003,2158.9,2158.5,3.2078]
[1741436446206,1.78129003,2158.9,2158.3,2.923]
[1741436446393,1.78129003,2158.8,2158.5,3.2078]
[1741436446710,1.78129003,2158.9,2158.3,2.923]
[1741436447091,3.2078,2158.7,2158.2,3.2078]
[1741436447298,3.2078,2158.7,2157.8,3.21474814]
[1741436447604,3.2078,2158.4,2157.8,0.00694814]
[1741436447901,5.7838,2158.4,2157.8,3.21474814]
[1741436448100,1.78129003,2158.3,2157.8,0.00694814]
[1741436448299,3.2078,2158.1,2157.4,3.2078]
[1741436448498,2.575,2158.0,2157.4,3.2078]
[1741436448700,4.35629003,2158.0,2157.4,3.2078]
[1741436449000,1.78129003,2157.9,2157.4,3.2078]
[1741436449304,3.2078,2157.7,2157.4,3.2078]
[1741436449505,3.2078,2157.7,2157.4,3.21474814]
[1741436449690,1.78129003,2157.6,2157.4,0.00694814]
[1741436449889,4.35529003,2157.6,2157.1,3.2078]
[1741436450090,3.2078,2157.4,2157.1,3.2078]
[1741436450494,1.78129003,2157.3,2157.1,3.2078]
[1741436450696,1.78129003,2157.2,2157.1,3.2078]
[1741436450896,1.78129003,2157.3,2157.1,3.2078]
[1741436451094,1.78129003,2157.3,2156.9,0.00694814]
[1741436451306,1.78129003,2157.2,2156.9,0.00694814]
[1741436451598,3.2287,2157.2,2156.9,0.00694814]
[1741436451791,1.78129003,2157.1,2156.9,0.00694814]
[1741436452300,1.78129003,2157.0,2156.9,0.00694814]
[1741436452501,1.78129003,2157.1,2156.9,0.00694814]
[1741436452905,1.78129003,2157.0,2156.9,0.00694814]
[1741436453103,1.78129003,2157.1,2156.9,0.00694814]
[1741436453303,2.563,2157.5,2157.0,3.2078]
[1741436453501,1.78129003,2157.4,2157.0,3.2078]
[1741436453903,1.78129003,2157.3,2157.1,15.4]
[1741436454209,1.78129003,2157.4,2157.1,15.4]
[1741436454502,1.78129003,2157.7,2157.1,15.4]
[1741436454893,1.78129003,2157.6,2157.1,15.4]
[1741436455205,1.78129003,2157.5,2157.1,15.4]
[1741436455504,1.78129003,2157.7,2157.1,15.4]
[1741436456005,6.3825,2157.8,2157.1,15.4]
[1741436456006,1.78129003,2157.6,2157.1,15.4]
[1741436456206,1.78129003,2157.7,2157.1,15.4]
[1741436456707,1.78129003,2157.6,2157.0,3.2078]
[1741436456898,1.78129003,2157.7,2157.0,3.2078]
[1741436457507,1.78129003,2157.6,2157.0,3.2078]
[1741436457709,1.78129003,2157.6,2157.3,3.2078]
[1741436458206,1.78129003,2157.5,2157.3,3.2078]
[1741436458405,1.78129003,2157.7,2157.3,3.2078]
[1741436459006,1.78129003,2157.6,2157.3,3.2078]
[1741436459197,2.544,2157.6,2157.3,3.2078]
[1741436459395,4.98909003,2157.5,2156.9,3.21474814]
[1741436459808,3.2078,2157.2,2156.9,0.00694814]
[1741436460203,1.78129003,2157.1,2156.9,0.00694814]
[1741436460401,1.78129003,2157.1,2156.0,5.7498]
[1741436460595,3.2078,2157.2,2156.3,3.2078]
[1741436460798,3.2078,2157.2,2156.9,3.2078]
[1741436460799,1.78129003,2157.2,2156.9,3.2078]
[1741436461097,3.8235,2157.8,2157.0,3.2078]
[1741436461302,1.78129003,2157.7,2157.0,3.2078]
[1741436461503,0.00694814,2157.6,2157.2,0.00694814]
[1741436461798,1.78823817,2157.6,2157.2,0.00694814]
[1741436462000,4.98909003,2157.5,2157.2,0.00694814]
[1741436462606,1.78129003,2157.4,2157.2,0.00694814]
[1741436463006,2.56094814,2157.6,2157.2,0.00694814]
[1741436463203,1.78129003,2157.5,2157.2,0.00694814]
[1741436463705,1.78129003,2157.4,2157.2,0.00694814]
[1741436464207,1.78129003,2157.3,2156.3,7.01831796]
[1741436464400,3.2078,2156.9,2156.3,1.25451796]
[1741436464606,3.2078,2156.9,2156.3,3.8533]
[1741436464811,1.78129003,2156.8,2156.3,3.8533]
[1741436465109,1.78129003,2156.9,2156.3,3.8533]
[1741436465304,1.78129003,2157.1,2156.3,3.8533]
[1741436465504,5.76974814,2157.6,2156.7,4.13529]
[1741436465712,1.78129003,2157.5,2157.0,3.2078]
[1741436466103,1.78129003,2157.4,2157.1,15.4]
[1741436466310,1.78129003,2157.5,2157.1,15.4]
[1741436466805,1.78129003,2157.4,2157.1,15.4]
[1741436467005,0.00694814,2157.6,2157.3,3.2078]
[1741436467609,1.78823817,2157.6,2157.3,3.2078]
[1741436467905,1.78129003,2157.5,2157.3,3.2078]
[1741436468208,1.78129003,2157.5,2157.1,18.323]
[1741436468407,1.78129003,2157.4,2157.1,2.923]
[1741436468605,1.78129003,2157.5,2157.1,2.923]
[1741436468807,1.78129003,2157.5,2157.0,3.2078]
[1741436469012,1.78129003,2157.4,2157.0,3.2078]
[1741436469213,1.78129003,2157.5,2157.0,3.2078]
[1741436469606,4.33029003,2157.4,2157.0,3.2078]
[1741436469816,2.549,2157.4,2157.0,3.2078]
[1741436470010,1.78129003,2157.3,2157.0,3.2078]
[1741436470204,1.78129003,2157.4,2157.0,3.2078]
[1741436470605,1.78129003,2157.3,2157.0,3.2078]
[1741436470900,1.78129003,2157.5,2157.0,3.2078]
[1741436471100,3.2078,2157.3,2156.6,2.55]
[1741436471506,1.78129003,2157.2,2156.6,2.55]
[1741436471713,3.2078,2157.0,2156.5,3.2078]
[1741436472312,1.78129003,2156.9,2156.5,3.2078]
[1741436472513,3.2078,2156.9,2156.4,0.00463212]
[1741436472706,1.78129003,2156.8,2156.4,0.00463212]
[1741436473204,1.78129003,2156.7,2156.4,0.00463212]
[1741436473516,1.78129003,2156.8,2156.4,0.00463212]
[1741436474015,3.2078,2156.6,2156.4,0.00463212]
[1741436474411,1.78129003,2156.5,2156.4,0.00463212]
[1741436474812,3.2078,2156.9,2156.4,0.00463212]
[1741436475113,1.78129003,2156.8,2156.4,0.00463212]
[1741436475613,1.78129003,2156.7,2156.4,0.00463212]
[1741436475813,3.2078,2156.5,2156.4,0.00463212]
[1741436476020,3.2078,2156.5,2155.8,3.2078]
[1741436476215,1.78129003,2156.4,2155.8,3.2078]
[1741436476404,0.34181362,2157.9,2155.8,3.2078]
[1741436476405,3.2078,2156.9,2156.1,3.2078]
[1741436476720,2.924,2158.3,2156.7,3.2078]
[1741436476721,2.42899003,2157.6,2156.7,3.2078]
[1741436476908,3.2078,2157.1,2156.5,3.1597]
[1741436477111,3.2078,2157.1,2156.5,0.6107]
[1741436477313,1.78823817,2157.0,2156.5,0.6107]
[1741436477707,1.78129003,2156.9,2156.5,0.6107]
[1741436478312,3.2078,2156.7,2156.2,2.548]
[1741436478521,3.2078,2156.7,2156.6,0.61273709]
[1741436479015,4.98909003,2156.7,2155.9,21.4737]
[1741436479217,1.78129003,2156.6,2156.0,3.72249548]
[1741436479516,1.78129003,2156.8,2156.1,1.83572888]
[1741436479821,1.78129003,2156.8,2156.2,0.51432035]
[1741436480113,1.78129003,2156.7,2156.3,0.51432035]
[1741436480312,1.78129003,2156.8,2156.3,3.2078]
[1741436480514,1.78129003,2156.8,2156.4,0.61258114]
[1741436480716,1.78129003,2156.7,2156.4,0.61258114]
[1741436481018,1.78129003,2156.8,2156.4,0.61258114]
[1741436481413,1.78129003,2156.8,2156.3,3.2078]
[1741436481716,1.78129003,2156.8,2156.4,0.51383589]
[1741436481915,1.78129003,2156.8,2156.5,0.61192088]
[1741436482417,1.78129003,2156.8,2156.6,3.2078]
[1741436483119,1.78129003,2156.8,2156.3,5.7348]
[1741436483413,0.00694814,2157.0,2156.6,3.2078]
[1741436483608,1.78129003,2156.9,2156.4,1.59026371]
[1741436483810,1.78823817,2157.0,2156.6,3.2078]
[1741436484011,1.78823817,2157.0,2156.7,0.61163989]
[1741436484416,0.00694814,2157.0,2156.7,0.61163989]
[1741436484620,1.78823817,2157.0,2156.6,3.2078]
[1741436485009,0.00694814,2157.0,2156.9,3.2078]
[1741436485213,1.78823817,2157.0,2156.7,2.52]
[1741436485412,1.78129003,2156.9,2156.7,2.52]
[1741436485614,1.78129003,2156.9,2156.6,3.2078]
[1741436485810,1.78129003,2156.8,2156.6,3.2078]
[1741436486021,4.98909003,2156.9,2156.6,3.2078]
[1741436486420,1.78129003,2156.8,2156.6,3.2078]
[1741436486919,1.78129003,2156.7,2156.6,3.2078]
[1741436487121,1.78129003,2156.9,2156.6,3.2078]
[1741436487317,3.21474814,2157.0,2156.6,3.2078]
[1741436487511,1.78129003,2156.9,2156.6,3.2078]
[1741436488024,1.78129003,2156.8,2156.6,3.2078]
[1741436488224,1.78129003,2156.9,2156.6,3.2078]
[1741436488519,1.78129003,2156.8,2156.6,3.2078]
[1741436488721,1.78129003,2156.9,2156.6,3.2078]
[1741436489118,1.78129003,2156.8,2156.6,3.2078]
[1741436489424,1.78129003,2156.9,2156.4,3.2078]
[1741436489718,1.78129003,2156.9,2156.3,2.522]
[1741436489925,3.2078,2156.7,2156.3,2.522]
[1741436490119,1.78129003,2156.9,2156.3,2.522]
[1741436490622,1.78129003,2156.8,2156.4,3.2078]
[1741436490818,1.78823817,2157.0,2156.7,3.2078]
[1741436491023,0.00694814,2157.0,2156.8,0.92745]
[1741436491211,0.00694814,2157.0,2156.8,4.0]
[1741436491417,22.1308,2157.7,2156.8,6.923]
[1741436491618,1.78129003,2157.6,2157.1,3.2078]
[1741436492128,1.78129003,2157.5,2157.2,3.2078]
[1741436492321,1.78129003,2157.6,2157.2,3.2078]
[1741436492627,1.78823817,2157.6,2157.2,3.21474814]
[1741436492827,1.78129003,2157.5,2157.2,3.21474814]
[1741436493329,1.78129003,2157.4,2157.2,0.00694814]
[1741436493525,1.78129003,2157.5,2157.2,0.00694814]
[1741436494024,1.78129003,2157.4,2157.2,0.00694814]
[1741436494226,1.78129003,2157.5,2157.2,0.00694814]
[1741436494719,0.00694814,2157.6,2157.2,0.00694814]
[1741436494720,3.2078,2157.3,2157.2,0.00694814]
[1741436494925,0.6359,2157.4,2157.2,0.00694814]
[1741436495126,1.78129003,2157.3,2157.2,0.00694814]
[1741436496634,0.00694814,2157.6,2157.5,0.92716]
[1741436496925,3.2078,2158.2,2157.4,6.62898]
[1741436497129,3.2078,2158.2,2157.4,5.7018]
[1741436497324,1.78129003,2158.1,2157.7,3.2078]
[1741436497919,1.78823817,2158.1,2157.7,3.2078]
[1741436499328,1.78129003,2158.0,2157.4,2.494]
[1741436499829,0.00694814,2158.1,2157.5,3.2078]
[1741436500026,0.00694814,2158.1,2157.9,0.92698]
[1741436500325,0.00694814,2158.1,2158.0,3.2078]
[1741436500724,3.2078,2158.9,2158.0,3.2078]
[1741436500923,4.98909003,2158.9,2158.0,3.2078]
[1741436501132,1.78129003,2158.8,2158.0,4.13472]
[1741436501522,1.78129003,2158.7,2158.0,3.2078]
[1741436501822,0.628,2159.2,2158.3,3.2078]
[1741436501823,0.00694814,2158.6,2158.3,3.2078]
[1741436502027,0.00694814,2158.6,2158.3,2.478]
[1741436502223,1.78823817,2158.6,2158.3,2.478]
[1741436502431,1.78823817,2158.6,2158.3,5.6858]
[1741436503028,0.00694814,2158.6,2158.3,5.6858]
[1741436503623,0.00694814,2158.6,2158.3,6.6126]
[1741436503825,0.00694814,2158.6,2158.3,5.6858]
[1741436504122,0.00694814,2158.6,2158.3,6.6126]
[1741436505430,0.00694814,2158.6,2158.3,5.6858]
[1741436505826,0.00694814,2158.6,2158.4,0.92677]
[1741436506030,0.00694814,2158.6,2158.3,6.6126]
[1741436506929,0.00694814,2158.6,2158.3,5.6858]
[1741436507125,0.00694814,2158.6,2158.3,6.6126]
[1741436507332,0.00694814,2158.6,2158.4,0.92677]
[1741436507532,0.00694814,2158.6,2158.3,5.6858]
[1741436508729,0.00694814,2158.6,2158.3,6.61259]
[1741436509531,0.00694814,2158.6,2158.3,6.6126]
[1741436509933,0.00694814,2158.6,2158.3,5.6858]
[1741436510627,1.78129003,2158.5,2158.2,5.368]
[1741436510929,1.78129003,2158.5,2158.2,2.923]
[1741436511132,1.78129003,2158.4,2158.1,0.00694814]
[1741436511331,3.2078,2158.3,2158.1,0.00694814]
[1741436511631,4.98909003,2158.3,2157.5,3.2078]
[1741436511834,3.2078,2157.9,2157.5,3.2078]
[1741436512234,1.78129003,2157.8,2157.2,3.8076]
[1741436512427,1.78129003,2157.8,2157.2,6.2516]
[1741436512629,1.78129003,2157.7,2157.3,0.00694814]
[1741436512837,3.2078,2157.6,2157.3,0.00694814]
[1741436513336,1.78129003,2157.5,2157.3,0.00694814]
[1741436513834,1.78129003,2157.4,2157.3,0.00694814]
[1741436514026,1.78129003,2157.5,2157.3,0.00694814]
[1741436514434,1.78129003,2157.4,2157.3,0.00694814]
[1741436514625,1.78129003,2157.5,2157.3,0.00694814]
[1741436515035,1.78129003,2157.4,2157.3,0.00694814]
[1741436515234,1.78129003,2157.5,2157.3,0.00694814]
[1741436515637,1.78129003,2157.4,2157.3,0.00694814]
[1741436515837,1.78129003,2157.5,2157.3,0.00694814]
[1741436516231,3.2078,2157.6,2157.3,0.00694814]
[1741436516232,1.78129003,2157.4,2157.3,0.00694814]
[1741436516431,1.78129003,2157.5,2157.3,0.00694814]
[1741436516837,1.78129003,2157.4,2157.3,0.00694814]
[1741436517034,1.78129003,2157.5,2157.3,0.00694814]
[1741436517438,1.78129003,2157.4,2157.3,0.00694814]
[1741436517632,1.78129003,2157.5,2157.3,0.00694814]
[1741436518245,1.78129003,2157.4,2157.3,0.00694814]
[1741436518436,1.78129003,2157.5,2157.3,0.00694814]
[1741436518830,1.78129003,2157.4,2157.3,0.00694814]
[1741436519032,3.2078,2157.4,2157.3,0.00694814]
[1741436519336,4.98909003,2157.4,2157.3,0.00694814]
[1741436519544,1.78129003,2157.4,2157.3,0.00694814]
[1741436520339,1.78129003,2157.4,2157.3,3.21474814]
[1741436521236,3.2078,2158.1,2157.3,4.14197814]
[1741436521441,1.78129003,2158.0,2157.3,3.21474814]
[1741436521836,1.78129003,2157.9,2157.3,3.21474814]
[1741436522141,1.78129003,2158.0,2157.3,3.21474814]
[1741436522642,1.78129003,2157.9,2157.3,3.21474814]
[1741436522837,1.78129003,2158.0,2157.3,3.21474814]
[1741436523246,1.78129003,2158.0,2157.6,3.2078]
[1741436523731,1.78129003,2157.9,2157.3,4.14196814]
[1741436523939,1.78129003,2158.2,2157.3,3.21474814]
[1741436524136,1.78129003,2158.2,2157.4,0.9272]
[1741436524336,1.78129003,2158.1,2157.6,3.2078]
[1741436524643,3.2078,2158.1,2157.6,3.2078]
[1741436524843,1.78129003,2158.0,2157.3,3.21474814]
[1741436525239,3.2078,2158.1,2157.3,3.21474814]
[1741436525240,1.78129003,2157.9,2157.3,3.21474814]
[1741436525434,1.78129003,2158.0,2157.6,3.2078]
[1741436525637,1.78129003,2158.2,2157.6,3.2078]
[1741436526041,1.78129003,2158.1,2157.6,3.2078]
[1741436526236,1.78129003,2158.2,2157.6,3.2078]
[1741436526436,3.2078,2158.1,2157.3,3.21474814]
[1741436526635,4.98909003,2158.1,2157.3,3.21474814]
[1741436526832,1.78129003,2158.0,2157.3,3.21474814]
[1741436527244,1.78129003,2158.0,2157.9,3.2078]
[1741436529541,0.00694814,2158.6,2157.9,7.2078]
[1741436529736,1.78129003,2158.5,2158.4,3.2078]
[1741436530947,0.00694814,2158.6,2158.4,7.05757]
[1741436531147,1.2375,2160.0,2158.7,3.2078]
[1741436531448,1.2375,2160.0,2158.6,2.31672]
[1741436531449,3.2078,2160.5,2159.9,3.2078]
[1741436532050,0.6518,2160.4,2159.9,3.2078]
[1741436532242,0.65874814,2160.4,2160.0,0.00694814]
[1741436534945,0.00694814,2160.4,2160.2,3.2078]